[Event "World Women Teams Championship"]
[Site "Sitges, Spain"]
[Date "2021.09.28"]
[Round "3.11"]
[White "Tania, Sachdev"]
[Black "Sargsyan, Anna M."]
[Result "1-0"]
[TimeControl "40+10"]
[WhiteElo "2339"]
[BlackElo "2283"]

1. d4 {[%clk 00:45:15]} {[%emt 00:00:04]} Nf6 {[%clk 00:45:10]} {[%emt
00:00:10]} 2. c4 {[%clk 00:45:23]} {[%emt 00:00:02]} g6 {[%clk 00:45:16]}
{[%emt 00:00:04]} 3. f3 {[%clk 00:45:32]} {[%emt 00:00:02]} d5 {[%clk
00:45:23]} {[%emt 00:00:03]} 4. cxd5 {[%clk 00:45:37]} {[%emt 00:00:04]} Nxd5
{[%clk 00:45:30]} {[%emt 00:00:03]} 5. e4 {[%clk 00:45:41]} {[%emt 00:00:07]}
Nb6 {[%clk 00:45:37]} {[%emt 00:00:02]} 6. Nc3 {[%clk 00:45:20]} {[%emt
00:00:31]} Bg7 {[%clk 00:45:42]} {[%emt 00:00:04]} 7. Be3 {[%clk 00:45:27]}
{[%emt 00:00:03]} O-O {[%clk 00:44:04]} {[%emt 00:01:49]} 8. Qd2 {[%clk
00:45:13]} {[%emt 00:00:25]} Nc6 {[%clk 00:43:59]} {[%emt 00:00:14]} 9. O-O-O
{[%clk 00:45:07]} {[%emt 00:00:16]} e5 {[%clk 00:40:39]} {[%emt 00:03:30]} 10.
d5 {[%clk 00:41:57]} {[%emt 00:03:20]} Nd4 {[%clk 00:40:46]} {[%emt 00:00:03]}
11. f4 {[%clk 00:40:54]} {[%emt 00:01:13]} c5 {[%clk 00:40:13]} {[%emt
00:00:44]} 12. fxe5 {[%clk 00:35:05]} {[%emt 00:05:59]} Bg4 {[%clk 00:38:50]}
{[%emt 00:01:32]} 13. Re1 {[%clk 00:34:34]} {[%emt 00:00:42]} Bxe5 {[%clk
00:38:42]} {[%emt 00:00:17]} 14. h3 {[%clk 00:32:33]} {[%emt 00:02:10]} Qh4
{[%clk 00:33:43]} {[%emt 00:05:09]} 15. Bd3 {[%clk 00:24:42]} {[%emt 00:08:02]}
Bd7 {[%clk 00:25:19]} {[%emt 00:08:34]} 16. Nf3 {[%clk 00:20:38]} {[%emt
00:04:14]} Nxf3 {[%clk 00:25:11]} {[%emt 00:00:18]} 17. gxf3 {[%clk 00:20:45]}
{[%emt 00:00:03]} Qe7 {[%clk 00:21:09]} {[%emt 00:04:11]} 18. f4 {[%clk
00:18:30]} {[%emt 00:02:25]} Bg7 {[%clk 00:21:14]} {[%emt 00:00:05]} 19. Kb1
{[%clk 00:12:37]} {[%emt 00:06:05]} Na4 {[%clk 00:19:45]} {[%emt 00:01:39]} 20.
Nxa4 {[%emt 00:00:37]} Bxa4 {[%clk 00:19:53]} {[%emt 00:00:01]} 21. e5 {[%clk
00:10:05]} {[%emt 00:02:14]} Rac8 {[%clk 00:19:50]} {[%emt 00:00:13]} 22. Rc1
{[%clk 00:09:09]} {[%emt 00:01:07]} b6 {[%clk 00:18:33]} {[%emt 00:01:27]} 23.
h4 {[%clk 00:07:48]} {[%emt 00:01:31]} Qb7 {[%clk 00:16:49]} {[%emt 00:01:54]}
24. Be4 {[%clk 00:07:29]} {[%emt 00:00:29]} f6 {[%clk 00:15:32]} {[%emt
00:01:28]} 25. h5 {[%clk 00:05:35]} {[%emt 00:02:04]} fxe5 {[%clk 00:15:24]}
{[%emt 00:00:17]} 26. hxg6 {[%clk 00:05:43]} {[%emt 00:00:02]} exf4 {[%clk
00:15:28]} {[%emt 00:00:06]} 27. Bxf4 {[%clk 00:04:57]} {[%emt 00:00:56]} Qe7
{[%clk 00:15:36]} {[%emt 00:00:02]} 28. Rc4 {[%clk 00:03:16]} {[%emt 00:01:51]}
Bd7 {[%clk 00:14:04]} {[%emt 00:01:42]} 29. Qh2 {[%clk 00:01:56]} {[%emt
00:01:30]} Rxf4 {[%clk 00:11:40]} {[%emt 00:02:34]} 30. Qxf4 {[%clk 00:01:23]}
{[%emt 00:00:42]} Rf8 {[%clk 00:11:47]} {[%emt 00:00:03]} 31. Qh4 {[%clk
00:00:17]} {[%emt 00:01:16]} Qxh4 {[%clk 00:10:18]} {[%emt 00:01:39]} 32. gxh7+
{[%clk 00:00:15]} {[%emt 00:00:13]} Kh8 {[%clk 00:10:02]} {[%emt 00:00:26]} 33.
Rxh4 {[%clk 00:00:23]} {[%emt 00:00:01]} Bd4 {[%clk 00:09:55]} {[%emt
00:00:17]} 34. a3 {[%clk 00:00:15]} {[%emt 00:00:19]} Bb5 {[%clk 00:08:53]}
{[%emt 00:01:12]} 35. Rc2 {[%clk 00:00:15]} {[%emt 00:00:09]} Ba4 {[%clk
00:07:58]} {[%emt 00:01:06]} 36. Rg2 {[%clk 00:00:13]} {[%emt 00:00:12]} Bg7
{[%clk 00:08:07]} 37. Rh1 {[%clk 00:00:13]} {[%emt 00:00:09]} Rf7 {[%clk
00:07:09]} {[%emt 00:01:08]} 38. d6 {[%clk 00:00:15]} {[%emt 00:00:08]} Rd7
{[%clk 00:06:31]} {[%emt 00:00:48]} 39. Bf5 {[%clk 00:00:12]} {[%emt 00:00:13]}
Rxd6 {[%clk 00:05:59]} {[%emt 00:00:41]} 40. Rxg7 {[%clk 00:00:21]} {[%emt
00:00:02]} 1-0

[Event "World Women Teams Championship"]
[Site "Sitges, Spain"]
[Date "2021.09.28"]
[Round "3.12"]
[White "Gaboyan, Susanna"]
[Black "Kulkarni, Bhakti"]
[Result "0-1"]
[TimeControl "40+10"]
[WhiteElo "2083"]
[BlackElo "2325"]

1. Nf3 {[%clk 00:45:12]} {[%emt 00:00:07]} Nf6 {[%clk 00:44:41]} {[%emt
00:00:31]} 2. g3 {[%clk 00:45:18]} {[%emt 00:00:12]} d5 {[%clk 00:44:39]}
{[%emt 00:00:11]} 3. Bg2 {[%clk 00:45:26]} {[%emt 00:00:03]} Bf5 {[%clk
00:44:20]} {[%emt 00:00:29]} 4. O-O {[%clk 00:45:29]} {[%emt 00:00:07]} c6
{[%clk 00:44:17]} {[%emt 00:00:13]} 5. d3 {[%clk 00:45:35]} {[%emt 00:00:05]}
h6 {[%clk 00:44:22]} {[%emt 00:00:05]} 6. Nbd2 {[%clk 00:45:40]} {[%emt
00:00:05]} e6 {[%clk 00:44:27]} {[%emt 00:00:05]} 7. Qe1 {[%clk 00:45:27]}
{[%emt 00:00:23]} Be7 {[%clk 00:44:08]} {[%emt 00:00:28]} 8. e4 {[%clk
00:45:32]} {[%emt 00:00:05]} dxe4 {[%clk 00:42:39]} {[%emt 00:01:39]} 9. dxe4
{[%clk 00:45:39]} {[%emt 00:00:03]} Bh7 {[%clk 00:42:47]} {[%emt 00:00:02]} 10.
Qe2 {[%clk 00:45:42]} {[%emt 00:00:08]} O-O {[%clk 00:42:46]} {[%emt 00:00:11]}
11. Rd1 {[%clk 00:43:20]} {[%emt 00:02:31]} Qc7 {[%clk 00:42:27]} {[%emt
00:00:28]} 12. Nd4 {[%clk 00:41:18]} {[%emt 00:02:13]} Nbd7 {[%clk 00:38:25]}
{[%emt 00:04:12]} 13. a4 {[%clk 00:37:04]} {[%emt 00:04:24]} Rfd8 {[%clk
00:32:44]} {[%emt 00:05:52]} 14. Nc4 {[%clk 00:34:34]} {[%emt 00:02:39]} Bf8
{[%clk 00:30:56]} {[%emt 00:01:58]} 15. e5 {[%clk 00:28:52]} {[%emt 00:05:52]}
Nd5 {[%clk 00:30:43]} {[%emt 00:00:23]} 16. c3 {[%clk 00:26:05]} {[%emt
00:02:57]} Nc5 {[%clk 00:26:03]} {[%emt 00:04:50]} 17. Qg4 {[%clk 00:15:08]}
{[%emt 00:11:06]} Kh8 {[%clk 00:21:26]} {[%emt 00:04:48]} 18. Bf4 {[%clk
00:10:35]} {[%emt 00:04:42]} Nd3 {[%clk 00:19:46]} {[%emt 00:01:50]} 19. Rd2
{[%clk 00:09:11]} {[%emt 00:01:35]} g5 {[%clk 00:17:08]} {[%emt 00:02:48]} 20.
Rad1 {[%clk 00:05:38]} {[%emt 00:03:43]} N3xf4 {[%clk 00:16:16]} {[%emt
00:01:02]} 21. gxf4 {[%clk 00:05:35]} {[%emt 00:00:14]} Nxf4 {[%clk 00:15:32]}
{[%emt 00:00:54]} 22. h4 {[%clk 00:04:37]} {[%emt 00:01:08]} Nxg2 {[%clk
00:11:33]} {[%emt 00:04:08]} 23. Kxg2 {[%clk 00:03:30]} {[%emt 00:01:18]} gxh4
{[%clk 00:10:13]} {[%emt 00:01:29]} 24. Qxh4 {[%clk 00:02:52]} {[%emt
00:00:49]} Qe7 {[%clk 00:10:13]} {[%emt 00:00:10]} 25. Qxe7 {[%clk 00:00:30]}
{[%emt 00:02:31]} Bxe7 {[%clk 00:10:21]} {[%emt 00:00:02]} 26. Na5 {[%clk
00:00:19]} {[%emt 00:00:21]} Rab8 {[%clk 00:08:34]} {[%emt 00:01:57]} 27. Nf3
{[%clk 00:00:13]} {[%emt 00:00:16]} Be4 {[%clk 00:08:28]} {[%emt 00:00:16]} 28.
Rxd8+ {[%clk 00:00:20]} {[%emt 00:00:04]} Bxd8 {[%clk 00:08:28]} {[%emt
00:00:10]} 29. Nxb7 {[%clk 00:00:23]} {[%emt 00:00:07]} Bc7 {[%clk 00:08:07]}
{[%emt 00:00:30]} 30. Nd6 {[%clk 00:00:00]} {[%emt 00:00:23]} 0-1

[ePGN "0.1;DGT LiveChess/2.2.5"]

[Event "World Women Teams  Championship"]
[Site "Sitges, Spain"]
[Date "2021.09.28"]
[Round "3.1"]
[White "Muzychuk, Anna"]
[Black "Zawadzka, Jolanta"]
[Result "0-1"]
[TimeControl "40+10"]
[WhiteElo "2537"]
[BlackElo "2313"]

1. e4 {[%clk 00:45:17]} {[%emt 00:00:02]} c5 {[%clk 00:45:16]} {[%emt
00:00:04]} 2. Nf3 {[%clk 00:45:20]} {[%emt 00:00:08]} Nc6 {[%clk 00:45:24]}
{[%emt 00:00:02]} 3. Bb5 {[%clk 00:45:12]} {[%emt 00:00:18]} e6 {[%clk
00:45:30]} {[%emt 00:00:04]} 4. O-O {[%clk 00:44:12]} {[%emt 00:01:11]} Nge7
{[%clk 00:45:37]} {[%emt 00:00:02]} 5. Re1 {[%clk 00:43:42]} {[%emt 00:00:40]}
a6 {[%clk 00:45:40]} {[%emt 00:00:07]} 6. Bf1 {[%clk 00:41:02]} {[%emt
00:02:50]} d5 {[%clk 00:45:30]} {[%emt 00:00:19]} 7. exd5 {[%clk 00:41:08]}
{[%emt 00:00:04]} Nxd5 {[%clk 00:45:38]} {[%emt 00:00:02]} 8. d4 {[%clk
00:41:14]} {[%emt 00:00:05]} Nf6 {[%clk 00:45:36]} {[%emt 00:00:11]} 9. Be3
{[%clk 00:40:37]} {[%emt 00:00:47]} cxd4 {[%clk 00:45:34]} {[%emt 00:00:11]} 10.
Nxd4 {[%clk 00:40:45]} {[%emt 00:00:02]} Bd7 {[%clk 00:45:37]} {[%emt
00:00:07]} 11. c4 {[%clk 00:40:22]} {[%emt 00:00:33]} Be7 {[%clk 00:44:15]}
{[%emt 00:01:32]} 12. Nc3 {[%clk 00:40:01]} {[%emt 00:00:32]} Qc7 {[%clk
00:44:03]} {[%emt 00:00:21]} 13. h3 {[%clk 00:38:01]} {[%emt 00:02:11]} O-O
{[%clk 00:43:52]} {[%emt 00:00:19]} 14. a3 {[%clk 00:36:33]} {[%emt 00:01:39]}
Na5 {[%clk 00:39:51]} {[%emt 00:04:10]} 15. c5 {[%clk 00:27:39]} {[%emt
00:09:06]} e5 {[%clk 00:37:24]} {[%emt 00:02:37]} 16. Nf3 {[%clk 00:25:53]}
{[%emt 00:01:55]} Be6 {[%clk 00:37:07]} {[%emt 00:00:26]} 17. b4 {[%clk
00:22:53]} {[%emt 00:03:11]} Nb3 {[%clk 00:35:17]} {[%emt 00:02:00]} 18. Rb1
{[%clk 00:22:47]} {[%emt 00:00:17]} Rad8 {[%clk 00:35:20]} {[%emt 00:00:06]} 19.
Nd2 {[%clk 00:22:36]} {[%emt 00:00:22]} Nd4 {[%clk 00:31:39]} {[%emt 00:03:50]}
20. Qc1 {[%clk 00:22:09]} {[%emt 00:00:37]} Nd5 {[%clk 00:28:01]} {[%emt
00:03:48]} 21. Nxd5 {[%clk 00:21:21]} {[%emt 00:00:59]} Bxd5 {[%clk 00:28:08]}
{[%emt 00:00:02]} 22. Nc4 {[%clk 00:20:30]} {[%emt 00:01:02]} Rfe8 {[%clk
00:23:52]} {[%emt 00:04:25]} 23. Qb2 {[%clk 00:16:19]} {[%emt 00:04:22]} Bxc4
{[%clk 00:18:55]} {[%emt 00:05:06]} 24. Bxc4 {[%clk 00:16:27]} {[%emt
00:00:03]} Bf6 {[%clk 00:18:49]} {[%emt 00:00:16]} 25. Rbd1 {[%clk 00:14:49]}
{[%emt 00:01:47]} g6 {[%clk 00:13:02]} {[%emt 00:05:58]} 26. Qc1 {[%clk
00:13:26]} {[%emt 00:01:32]} Qc6 {[%clk 00:12:22]} {[%emt 00:00:50]} 27. Rd3
{[%clk 00:11:37]} {[%emt 00:02:00]} Qc8 {[%clk 00:05:58]} {[%emt 00:06:33]} 28.
Kh1 {[%clk 00:06:38]} {[%emt 00:05:09]} e4 {[%clk 00:03:30]} {[%emt 00:02:38]}
29. Rd2 {[%clk 00:06:34]} {[%emt 00:00:14]} Nf3 {[%clk 00:03:02]} {[%emt
00:00:39]} 30. Rxd8 {[%clk 00:06:15]} {[%emt 00:00:29]} Rxd8 {[%clk 00:02:56]}
{[%emt 00:00:17]} 31. Rd1 {[%clk 00:05:54]} {[%emt 00:00:31]} Ne5 {[%clk
00:02:48]} {[%emt 00:00:18]} 32. Rxd8+ {[%clk 00:02:01]} {[%emt 00:04:01]} Qxd8
{[%clk 00:02:48]} {[%emt 00:00:09]} 33. Ba2 {[%clk 00:01:19]} {[%emt 00:00:53]}
Qd3 {[%clk 00:01:30]} {[%emt 00:01:28]} 34. Bb1 {[%clk 00:01:24]} {[%emt
00:00:06]} Qd5 {[%clk 00:01:29]} {[%emt 00:00:10]} 35. Qc2 {[%clk 00:01:14]}
{[%emt 00:00:19]} Nc4 {[%clk 00:00:34]} {[%emt 00:01:09]} 36. Qxe4 {[%clk
00:00:52]} {[%emt 00:00:29]} Qd1+ {[%emt 00:00:06]} 37. Kh2 {[%emt 00:00:01]}
Nxe3 {[%clk 00:00:34]} {[%emt 00:00:13]} 38. fxe3 {[%clk 00:01:11]} Kg7 {[%clk
00:00:37]} {[%emt 00:00:08]} 39. Ba2 {[%clk 00:00:55]} {[%emt 00:00:25]} Qa1
{[%clk 00:00:42]} {[%emt 00:00:06]} 40. Qb1 {[%clk 00:00:16]} {[%emt 00:00:48]}
Be5+ {[%clk 00:00:14]} {[%emt 00:00:38]} 41. g3 {[%clk 00:00:16]} {[%emt
00:00:11]} Qc3 {[%clk 00:00:23]} 42. Qb3 {[%emt 00:00:16]} 0-1

[Event "World Women Teams  Championship"]
[Site "Sitges, Spain"]
[Date "2021.09.28"]
[Round "3.3"]
[White "Osmak, Iulija"]
[Black "Kulon, Klaudia"]
[Result "1/2-1/2"]
[TimeControl "40+10"]
[WhiteElo "2302"]
[BlackElo "2234"]

1. d4 {[%clk 00:45:18]} {[%emt 00:00:02]} Nf6 {[%clk 00:45:17]} {[%emt
00:00:03]} 2. c4 {[%clk 00:45:24]} {[%emt 00:00:04]} g6 {[%clk 00:45:23]}
{[%emt 00:00:04]} 3. g3 {[%clk 00:45:31]} {[%emt 00:00:03]} Bg7 {[%clk
00:45:29]} {[%emt 00:00:04]} 4. Bg2 {[%clk 00:45:39]} {[%emt 00:00:02]} O-O
{[%clk 00:45:32]} {[%emt 00:00:06]} 5. Nf3 {[%clk 00:45:47]} {[%emt 00:00:03]}
d6 {[%clk 00:45:36]} {[%emt 00:00:06]} 6. O-O {[%clk 00:45:54]} {[%emt
00:00:03]} Nc6 {[%clk 00:45:40]} {[%emt 00:00:07]} 7. Nc3 {[%clk 00:46:00]}
{[%emt 00:00:04]} e5 {[%clk 00:45:41]} {[%emt 00:00:08]} 8. dxe5 {[%clk
00:46:08]} {[%emt 00:00:02]} Nxe5 {[%clk 00:45:46]} {[%emt 00:00:05]} 9. Nxe5
{[%clk 00:45:58]} {[%emt 00:00:20]} dxe5 {[%clk 00:45:53]} {[%emt 00:00:03]} 10.
Qxd8 {[%clk 00:46:00]} {[%emt 00:00:08]} Rxd8 {[%clk 00:45:59]} {[%emt
00:00:04]} 11. Bg5 {[%clk 00:46:07]} {[%emt 00:00:03]} Rd4 {[%clk 00:39:45]}
{[%emt 00:06:24]} 12. Be3 {[%clk 00:43:40]} {[%emt 00:02:38]} Rd7 {[%clk
00:34:42]} {[%emt 00:05:13]} 13. Nb5 {[%clk 00:41:15]} {[%emt 00:02:34]} Ng4
{[%clk 00:32:46]} {[%emt 00:02:06]} 14. Bc5 {[%clk 00:41:07]} {[%emt 00:00:18]}
Bf8 {[%clk 00:32:04]} {[%emt 00:00:52]} 15. Bxf8 {[%clk 00:40:39]} {[%emt
00:00:38]} Kxf8 {[%clk 00:32:13]} {[%emt 00:00:01]} 16. Rfd1 {[%clk 00:36:35]}
{[%emt 00:04:14]} Rxd1+ {[%clk 00:28:22]} {[%emt 00:04:01]} 17. Rxd1 {[%clk
00:35:27]} {[%emt 00:01:19]} c6 {[%clk 00:28:30]} {[%emt 00:00:02]} 18. Nd6
{[%clk 00:29:55]} {[%emt 00:05:41]} Nf6 {[%clk 00:28:30]} {[%emt 00:00:10]} 19.
c5 {[%clk 00:26:59]} {[%emt 00:03:06]} Rb8 {[%clk 00:25:39]} {[%emt 00:03:02]}
20. Nc4 {[%clk 00:26:20]} {[%emt 00:00:49]} e4 {[%clk 00:21:14]} {[%emt
00:04:34]} 21. Rd8+ {[%clk 00:24:53]} {[%emt 00:01:37]} Ke7 {[%clk 00:21:23]}
{[%emt 00:00:02]} 22. Rh8 {[%clk 00:24:58]} {[%emt 00:00:04]} Ne8 {[%clk
00:21:21]} {[%emt 00:00:12]} 23. Bxe4 {[%clk 00:23:00]} {[%emt 00:02:09]} Be6
{[%clk 00:21:18]} {[%emt 00:00:13]} 24. Bd3 {[%clk 00:17:09]} {[%emt 00:06:00]}
Rd8 {[%clk 00:20:04]} {[%emt 00:01:25]} 25. Rxh7 {[%clk 00:16:54]} {[%emt
00:00:24]} Nf6 {[%clk 00:20:04]} {[%emt 00:00:10]} 26. Rh4 {[%clk 00:16:18]}
{[%emt 00:00:46]} g5 {[%clk 00:18:58]} {[%emt 00:01:15]} 27. Rh6 {[%clk
00:16:26]} {[%emt 00:00:03]} Rd5 {[%clk 00:17:44]} {[%emt 00:01:25]} 28. Rh8
{[%clk 00:14:14]} {[%emt 00:02:21]} Rxc5 {[%clk 00:17:21]} {[%emt 00:00:33]} 29.
b3 {[%clk 00:14:23]} b5 {[%clk 00:16:00]} {[%emt 00:01:31]} 30. Ne3 {[%clk
00:14:26]} {[%emt 00:00:06]} Rc1+ {[%clk 00:14:51]} {[%emt 00:01:20]} 31. Kg2
{[%clk 00:14:33]} {[%emt 00:00:03]} Ra1 {[%clk 00:14:43]} {[%emt 00:00:19]} 32.
Nc2 {[%clk 00:13:34]} {[%emt 00:01:09]} Rxa2 {[%clk 00:14:07]} {[%emt
00:00:46]} 33. Nb4 {[%clk 00:13:43]} {[%emt 00:00:02]} Rb2 {[%clk 00:13:39]}
{[%emt 00:00:36]} 34. Nxc6+ {[%clk 00:13:44]} {[%emt 00:00:09]} Kd6 {[%clk
00:13:46]} {[%emt 00:00:03]} 35. Nxa7 {[%clk 00:13:14]} {[%emt 00:00:40]} Bd5+
{[%clk 00:13:51]} {[%emt 00:00:05]} 36. f3 {[%clk 00:12:57]} {[%emt 00:00:27]}
g4 {[%clk 00:13:37]} {[%emt 00:00:25]} 37. Nxb5+ {[%clk 00:12:41]} {[%emt
00:00:25]} Ke5 {[%clk 00:12:49]} {[%emt 00:00:58]} 38. Kf1 {[%clk 00:06:03]}
{[%emt 00:06:44]} gxf3 {[%clk 00:12:47]} {[%emt 00:00:16]} 39. Nc3 {[%clk
00:04:18]} {[%emt 00:01:55]} Bb7 {[%clk 00:11:59]} {[%emt 00:00:57]} 40. Rf8
{[%clk 00:01:49]} {[%emt 00:02:39]} Rxb3 {[%clk 00:05:18]} {[%emt 00:06:52]} 41.
Rxf7 {[%clk 00:01:42]} {[%emt 00:00:18]} Bc6 {[%clk 00:05:25]} {[%emt
00:00:02]} 42. Nd1 {[%clk 00:01:01]} {[%emt 00:00:51]} Ng4 {[%clk 00:05:02]}
{[%emt 00:00:33]} 43. h3 {[%clk 00:00:21]} {[%emt 00:00:50]} Nf6 {[%clk
00:04:26]} {[%emt 00:00:45]} 44. Re7+ {[%clk 00:00:12]} {[%emt 00:00:24]} Kd6
{[%clk 00:04:16]} {[%emt 00:00:20]} 45. Re3 {[%clk 00:00:14]} {[%emt 00:00:03]}
Nh5 {[%clk 00:03:15]} {[%emt 00:01:11]} 46. exf3 {[%clk 00:00:11]} {[%emt
00:00:14]} Nxg3+ {[%clk 00:03:22]} {[%emt 00:00:02]} 47. Kg2 {[%clk 00:00:12]}
{[%emt 00:00:08]} Nh5 {[%clk 00:03:28]} {[%emt 00:00:04]} 48. Bc4 {[%emt
00:00:08]} Rb1 {[%clk 00:03:15]} {[%emt 00:00:22]} 49. Nc3 {[%clk 00:00:13]}
{[%emt 00:00:12]} Rb2+ {[%clk 00:03:13]} {[%emt 00:00:13]} 50. Be2 {[%clk
00:00:14]} {[%emt 00:00:08]} Bd7 {[%clk 00:02:56]} {[%emt 00:00:28]} 51. h4
{[%emt 00:00:07]} Nf4+ {[%clk 00:02:38]} {[%emt 00:00:27]} 52. Kg3 {[%clk
00:00:26]} {[%emt 00:00:02]} Nh5+ {[%clk 00:02:36]} {[%emt 00:00:13]} 53. Kf2
{[%clk 00:00:33]} Bf5 {[%clk 00:02:12]} {[%emt 00:00:34]} 54. Ne4+ {[%clk
00:00:36]} {[%emt 00:00:06]} Kd7 {[%clk 00:01:35]} {[%emt 00:00:48]} 55. Ng3
{[%clk 00:00:35]} {[%emt 00:00:12]} Ng7 {[%clk 00:01:44]} {[%emt 00:00:02]} 56.
h5 {[%clk 00:00:36]} {[%emt 00:00:09]} Bh7 {[%clk 00:01:36]} {[%emt 00:00:16]}
57. f4 {[%clk 00:00:30]} {[%emt 00:00:15]} Ne6 {[%clk 00:01:27]} {[%emt
00:00:21]} 58. f5 {[%clk 00:00:11]} {[%emt 00:00:32]} Ng5 {[%clk 00:00:34]}
{[%emt 00:00:58]} 59. Re5 {[%clk 00:00:17]} {[%emt 00:00:05]} Kd6 {[%clk
00:00:38]} {[%emt 00:00:08]} 60. Re8 {[%clk 00:00:23]} {[%emt 00:00:05]} Kd7
{[%clk 00:00:41]} {[%emt 00:00:06]} 61. Ra8 {[%clk 00:00:20]} {[%emt 00:00:11]}
Kd6 {[%clk 00:00:44]} {[%emt 00:00:08]} 62. Ra7 {[%clk 00:00:26]} {[%emt
00:00:03]} Ke5 {[%clk 00:00:51]} {[%emt 00:00:04]} 63. Rg7 {[%clk 00:00:32]}
{[%emt 00:00:03]} Kf6 {[%clk 00:00:57]} {[%emt 00:00:04]} 64. h6 {[%clk
00:00:36]} {[%emt 00:00:07]} Rb4 {[%clk 00:00:36]} {[%emt 00:00:31]} 65. Bd3
{[%clk 00:00:20]} {[%emt 00:00:26]} Rh4 {[%clk 00:00:45]} {[%emt 00:00:01]} 66.
Ra7 {[%clk 00:00:18]} {[%emt 00:00:12]} Rxh6 {[%clk 00:00:43]} {[%emt
00:00:11]} 67. Ra6+ {[%clk 00:00:23]} {[%emt 00:00:05]} Kg7 {[%clk 00:00:52]}
68. f6+ {[%clk 00:00:29]} {[%emt 00:00:04]} Rxf6+ {[%clk 00:00:59]} {[%emt
00:00:03]} 69. Rxf6 {[%clk 00:00:36]} {[%emt 00:00:03]} Kxf6 {[%clk 00:01:09]}
70. Bxh7 {[%clk 00:00:42]} {[%emt 00:00:04]} Nxh7 {[%clk 00:01:18]} 1/2-1/2